[Event "FIDE Womens Grand Swiss 2021"]
[Site "Riga"]
[Date "2021.11.04"]
[Round "8.17"]
[White "Divya Deshmukh"]
[Black "Gunina, Valentina"]
[Result "0-1"]
[ECO "B12"]
[WhiteElo "2305"]
[BlackElo "2462"]
[Annotator "ChessBase"]
[PlyCount "216"]
[EventDate "2021.10.27"]
[EventType "swiss"]
[EventCountry "LAT"]
[Tiebreak "Cut1 Buchholz+Sonneborn-Berger (Swiss)"]
[SourceTitle "playchess.com"]
[Source "ChessBase"]
[SourceQuality "1"]
[TimeControl "40/6000+30:20/3000+30:900+30"]

1. e4 {[%emt 0:10:04]} c6 {[%emt 0:10:22]} 2. d4 {[%emt 0:00:04]} d5 {[%emt 0:
00:10]} 3. f3 {[%emt 0:00:06]} dxe4 {[%emt 0:01:34]} 4. fxe4 {[%emt 0:00:13]}
e5 {[%emt 0:00:05]} 5. Nf3 {[%emt 0:02:19]} Bg4 {[%emt 0:01:02]} 6. c3 {
[%emt 0:00:04]} Nd7 {[%emt 0:02:02]} 7. Bd3 {[%emt 0:00:15]} Ngf6 {[%emt 0:01:
29]} 8. O-O {[%emt 0:00:12]} Bd6 {[%emt 0:03:33]} 9. Bg5 {[%emt 0:08:41]} h6 {
[%emt 0:01:15]} 10. Be3 {[%emt 0:13:06]} Qc7 {[%emt 0:01:48]} 11. h3 {[%emt 0:
00:45]} Bh5 {[%emt 0:00:27]} 12. Qb3 {[%emt 0:06:38]} O-O-O {[%emt 0:01:35]}
13. Nbd2 {[%emt 0:02:21]} g5 {[%emt 0:03:02]} 14. Nc4 {[%emt 0:14:18]} g4 {
[%emt 0:08:04]} 15. Nfxe5 {[%emt 0:38:32]} Nxe5 {[%emt 0:00:23]} 16. dxe5 {
[%emt 0:00:21]} Bxe5 {[%emt 0:00:09]} 17. Nxe5 {[%emt 0:09:35]} Qxe5 {[%emt 0:
00:06]} 18. Rf5 {[%emt 0:01:00]} Qg3 {[%emt 0:00:08]} 19. Bf4 {[%emt 0:00:12]}
Qxd3 {[%emt 0:00:09]} 20. Rxf6 {[%emt 0:00:03]} Qxe4 {[%emt 0:00:08]} 21. hxg4
{[%emt 0:00:16]} Rdg8 {[%emt 0:05:04]} 22. Bg3 {[%emt 0:01:52]} Rxg4 {[%emt 0:
10:50]} 23. Re1 {[%emt 0:00:05]} Qd5 {[%emt 0:00:20]} 24. Qxd5 {[%emt 0:00:53]}
cxd5 {[%emt 0:00:01]} 25. Bf4 {[%emt 0:00:28]} Rhg8 {[%emt 0:04:36]} 26. g3 {
[%emt 0:00:01]} Rxf4 {[%emt 0:16:25]} 27. Rxf4 {[%emt 0:00:03]} Rxg3+ {[%emt 0:
00:04]} 28. Kf2 {[%emt 0:00:40]} Rd3 {[%emt 0:00:16]} 29. Rd4 {[%emt 0:01:06]}
Rf3+ {[%emt 0:00:28]} 30. Kg1 {[%emt 0:00:42]} Rf5 {[%emt 0:00:40]} 31. c4 {
[%emt 0:00:05]} Bf3 {[%emt 0:01:04]} 32. Rf1 {[%emt 0:00:58]} dxc4 {[%emt 0:01:
23]} 33. Rxc4+ {[%emt 0:00:14]} Kd7 {[%emt 0:00:00]} 34. Kh2 {[%emt 0:00:47]}
Rh5+ {[%emt 0:01:05]} 35. Kg3 {[%emt 0:00:01]} Bd5 {[%emt 0:00:11]} 36. Rh4 {
[%emt 0:00:51]} Rg5+ {[%emt 0:01:07]} 37. Kf4 {[%emt 0:00:10]} Be6 {[%emt 0:01:
11]} 38. Rd1+ {[%emt 0:00:34]} Ke7 {[%emt 0:00:04]} 39. Rd2 {[%emt 0:00:53]}
Rf5+ {[%emt 0:02:18]} 40. Ke4 {[%emt 0:00:25]} h5 {[%emt 0:01:13]} 41. Rdh2 {
[%emt 0:24:43]} Ra5 {[%emt 0:20:25]} 42. Rxh5 {[%emt 0:00:11]} Rxa2 {[%emt 0:
00:12]} 43. Rd2 {[%emt 0:08:07]} b6 {[%emt 0:00:51]} 44. Rh8 {[%emt 0:01:12]}
Ra4+ {[%emt 0:00:28]} 45. Rd4 {[%emt 0:02:48]} Ra5 {[%emt 0:00:13]} 46. b4 {
[%emt 0:01:09]} Ra3 {[%emt 0:00:38]} 47. Ra8 {[%emt 0:00:53]} b5 {[%emt 0:06:
01]} 48. Rb8 {[%emt 0:01:40]} a6 {[%emt 0:03:10]} 49. Rb6 {[%emt 0:00:41]} Kf6
{[%emt 0:03:22]} 50. Rdd6 {[%emt 0:01:28]} Rh3 {[%emt 0:00:13]} 51. Rd4 {
[%emt 0:02:37]} Ra3 {[%emt 0:01:29]} 52. Rdd6 {[%emt 0:00:06]} Ra4 {[%emt 0:00:
16]} 53. Rxa6 {[%emt 0:00:30]} Rxb4+ {[%emt 0:00:03]} 54. Rd4 {[%emt 0:00:03]}
Rb1 {[%emt 0:00:25]} 55. Rb6 {[%emt 0:00:47]} Kg5 {[%emt 0:00:23]} 56. Ke5 {
[%emt 0:01:11]} Re1+ {[%emt 0:01:04]} 57. Re4 {[%emt 0:01:42]} f6+ {[%emt 0:02:
13]} 58. Kd4 {[%emt 0:00:04]} Rd1+ {[%emt 0:00:05]} 59. Kc5 {[%emt 0:01:01]}
Bc4 {[%emt 0:00:42]} 60. Rd4 {[%emt 0:00:31]} Re1 {[%emt 0:00:48]} 61. Rd2 {
[%emt 0:18:29]} Rf1 {[%emt 0:20:41]} 62. Rg2+ {[%emt 0:00:32]} Kf5 {[%emt 0:00:
09]} 63. Rd6 {[%emt 0:01:12]} Ke5 {[%emt 0:00:42]} 64. Rd8 {[%emt 0:02:37]} f5
{[%emt 0:00:31]} 65. Rf8 {[%emt 0:00:58]} Ke4 {[%emt 0:00:18]} 66. Rg6 {
[%emt 0:00:39]} f4 {[%emt 0:01:42]} 67. Rgf6 {[%emt 0:00:06]} f3 {[%emt 0:02:
14]} 68. Re8+ {[%emt 0:00:23]} Kd3 {[%emt 0:00:01]} 69. Ref8 {[%emt 0:00:06]}
Ke3 {[%emt 0:01:02]} 70. Re8+ {[%emt 0:00:20]} Kd2 {[%emt 0:00:35]} 71. Ref8 {
[%emt 0:00:21]} Be2 {[%emt 0:00:14]} 72. Rxf3 {[%emt 0:00:11]} Bxf3 {[%emt 0:
00:50]} 73. Rd8+ {[%emt 0:00:09]} Ke3 {[%emt 0:00:12]} 74. Kxb5 {[%emt 0:00:04]
} Rc1 {[%emt 0:00:06]} 75. Kb4 {[%emt 0:00:24]} Bc6 {[%emt 0:00:32]} 76. Kb3 {
[%emt 0:01:18]} Ke4 {[%emt 0:00:22]} 77. Kb4 {[%emt 0:02:35]} Bd5 {[%emt 0:00:
09]} 78. Rh8 {[%emt 0:00:04]} Kd4 {[%emt 0:00:07]} 79. Rh4+ {[%emt 0:00:04]}
Be4 {[%emt 0:00:06]} 80. Rh3 {[%emt 0:00:11]} Rc8 {[%emt 0:01:52]} 81. Rh5 {
[%emt 0:00:07]} Rc7 {[%emt 0:01:03]} 82. Rg5 {[%emt 0:00:39]} Rh7 {[%emt 0:00:
03]} 83. Rb5 {[%emt 0:01:16]} Bc6 {[%emt 0:02:10]} 84. Rb6 {[%emt 0:00:40]} Bd5
{[%emt 0:00:32]} 85. Rb5 {[%emt 0:01:22]} Rh6 {[%emt 0:00:14]} 86. Ka5 {
[%emt 0:00:38]} Bc4 {[%emt 0:00:21]} 87. Rb8 {[%emt 0:01:44]} Kc3 {[%emt 0:05:
10]} 88. Ra8 {[%emt 0:00:04]} Rc6 {[%emt 0:00:14]} 89. Ka4 {[%emt 0:00:55]} Rb6
{[%emt 0:00:34]} 90. Ka5 {[%emt 0:00:20]} Rb1 {[%emt 0:01:12]} 91. Ra7 {
[%emt 0:00:29]} Rb5+ {[%emt 0:03:12]} 92. Ka6 {[%emt 0:00:27]} Rb2+ {[%emt 0:
03:11]} 93. Ka5 {[%emt 0:00:02]} Rb1 {[%emt 0:00:10]} 94. Rc7 {[%emt 0:00:13]}
Rb2 {[%emt 0:02:20]} 95. Ra7 {[%emt 0:00:23]} Kd4 {[%emt 0:02:22]} 96. Rd7+ {
[%emt 0:00:35]} Kc5 {[%emt 0:00:04]} 97. Rc7+ {[%emt 0:00:04]} Kd5 {[%emt 0:00:
02]} 98. Rd7+ {[%emt 0:00:22]} Kc6 {[%emt 0:00:22]} 99. Rd8 {[%emt 0:00:10]}
Be6 {[%emt 0:01:02]} 100. Rh8 {[%emt 0:02:17]} Kc5 {[%emt 0:00:29]} 101. Rh5+ {
[%emt 0:00:24]} Bd5 {[%emt 0:00:03]} 102. Rh4 {[%emt 0:00:02]} Rb1 {[%emt 0:04:
13]} 103. Rf4 {[%emt 0:00:40]} Rh1 {[%emt 0:05:52]} 104. Rg4 {[%emt 0:00:06]}
Rh2 {[%emt 0:02:36]} 105. Rf4 {[%emt 0:00:17]} Be6 {[%emt 0:01:07]} 106. Ka6 {
[%emt 0:00:05]} Rh7 {[%emt 0:00:14]} 107. Ka5 {[%emt 0:00:59]} Rh2 108. Rb4 Bc4
{[%emt 0:00:06]} 0-1

[Event "FIDE Womens Grand Swiss 2021"]
[Site "Riga"]
[Date "2021.11.04"]
[Round "8.18"]
[White "Cyfka, Karina"]
[Black "Sukandar, Irine Kharisma"]
[Result "1/2-1/2"]
[ECO "E01"]
[WhiteElo "2409"]
[BlackElo "2406"]
[Annotator "NA"]
[PlyCount "70"]
[EventDate "2021.10.27"]
[EventType "swiss"]
[EventCountry "LAT"]
[Tiebreak "Cut1 Buchholz+Sonneborn-Berger (Swiss)"]
[SourceTitle "playchess.com"]
[Source "ChessBase"]
[SourceQuality "1"]
[TimeControl "40/6000+30:20/3000+30:900+30"]

1. d4 {[%emt 0:10:03]} d5 {[%emt 0:10:35]} 2. c4 {[%emt 0:00:27]} e6 {[%emt 0:
00:06]} 3. Nf3 {[%emt 0:00:07]} Nf6 {[%emt 0:00:16]} 4. g3 {[%emt 0:00:31]}
Nbd7 {[%emt 0:04:46]} 5. Bg2 {[%emt 0:00:58]} c6 {[%emt 0:02:28]} 6. Qc2 {
[%emt 0:03:09]} Bd6 {[%emt 0:01:57]} 7. O-O {[%emt 0:02:36]} O-O {[%emt 0:00:
26]} 8. Nbd2 {[%emt 0:01:55]} Qe7 {[%emt 0:01:35]} 9. b3 {[%emt 0:14:20]} Re8 {
[%emt 0:06:11]} 10. Bb2 {[%emt 0:05:58]} Ba3 {[%emt 0:02:43]} 11. Ne5 {[%emt 0:
10:00]} a5 {[%emt 0:10:42]} 12. e4 {[%emt 0:03:52]} Bxb2 $14 {[%emt 0:22:24]}
13. Qxb2 {[%emt 0:00:11]} dxc4 {[%emt 0:00:31]} 14. Ndxc4 {[%emt 0:06:49]} Nf8
{[%emt 0:03:40]} 15. Rac1 {[%emt 0:05:51]} Rd8 {[%emt 0:02:41]} 16. Rfd1 {
[%emt 0:03:31]} Ra6 {[%emt 0:04:15]} 17. Nd3 {[%emt 0:03:22]} Bd7 {[%emt 0:04:
00]} 18. Nc5 {[%emt 0:05:28]} Ra7 {[%emt 0:00:41]} 19. Qc3 {[%emt 0:06:08]} Be8
{[%emt 0:00:56]} 20. h3 {[%emt 0:01:47]} h5 {[%emt 0:01:14]} 21. e5 {[%emt 0:
02:43]} Nd5 {[%emt 0:00:21]} 22. Qf3 {[%emt 0:00:39]} h4 {[%emt 0:00:40]} 23.
Ne4 {[%emt 0:00:55]} a4 {[%emt 0:03:14]} 24. Ncd6 {[%emt 0:03:16]} hxg3 {
[%emt 0:04:04]} 25. fxg3 {[%emt 0:00:50]} f5 {[%emt 0:01:06]} 26. exf6 {
[%emt 0:02:13]} gxf6 {[%emt 0:00:58]} 27. Nxe8 {[%emt 0:03:08]} Rxe8 {[%emt 0:
00:13]} 28. Rf1 {[%emt 0:01:31]} Nh7 {[%emt 0:02:46]} 29. Rce1 {[%emt 0:01:49]}
axb3 {[%emt 0:01:27]} 30. axb3 {[%emt 0:00:02]} b6 {[%emt 0:04:18]} 31. Qh5 {
[%emt 0:01:19]} Rd8 {[%emt 0:01:19]} 32. Nf2 {[%emt 0:01:08]} Qd6 {[%emt 0:05:
48]} 33. Ne4 {[%emt 0:03:12]} Qe7 {[%emt 0:01:03]} 34. Nf2 {[%emt 0:02:42]} Qd6
{[%emt 0:00:38]} 35. Ne4 {[%emt 0:00:48]} Qe7 {[%emt 0:01:20]} 1/2-1/2

[Event "FIDE Womens Grand Swiss 2021"]
[Site "Riga"]
[Date "2021.11.04"]
[Round "8.19"]
[White "Garifullina, Leya"]
[Black "Kamalidenova, Meruert"]
[Result "1-0"]
[ECO "B67"]
[WhiteElo "2409"]
[BlackElo "2339"]
[Annotator "NA"]
[PlyCount "91"]
[EventDate "2021.10.27"]
[EventType "swiss"]
[EventCountry "LAT"]
[Tiebreak "Cut1 Buchholz+Sonneborn-Berger (Swiss)"]
[SourceTitle "playchess.com"]
[Source "ChessBase"]
[SourceQuality "1"]
[TimeControl "40/6000+30:20/3000+30:900+30"]

1. e4 {[%emt 0:10:03]} c5 {[%emt 0:10:09]} 2. Nf3 {[%emt 0:00:09]} d6 {[%emt 0:
00:07]} 3. d4 {[%emt 0:00:05]} cxd4 {[%emt 0:00:08]} 4. Nxd4 {[%emt 0:00:05]}
Nf6 {[%emt 0:00:10]} 5. Nc3 {[%emt 0:00:05]} Nc6 {[%emt 0:00:21]} 6. Bg5 {
[%emt 0:05:04]} e6 {[%emt 0:00:39]} 7. Qd2 {[%emt 0:00:08]} a6 {[%emt 0:00:18]}
8. O-O-O {[%emt 0:00:50]} Bd7 {[%emt 0:00:53]} 9. f4 {[%emt 0:01:37]} b5 {
[%emt 0:01:09]} 10. a3 {[%emt 0:06:25]} Qa5 {[%emt 0:04:42]} 11. Nb3 {[%emt 0:
21:06]} Qc7 {[%emt 0:07:14]} 12. Be2 {[%emt 0:02:16]} Be7 {[%emt 0:03:41]} 13.
Bxf6 {[%emt 0:03:41]} gxf6 {[%emt 0:01:02]} 14. Bh5 {[%emt 0:01:16]} Rf8 {
[%emt 0:04:35]} 15. Rhe1 {[%emt 0:07:02]} O-O-O {[%emt 0:02:58]} (15... Rb8
$142) 16. Re3 {[%emt 0:03:19]} Kb8 {[%emt 0:06:50]} 17. Rg3 {[%emt 0:02:04]}
Na5 $18 {[%emt 0:01:07]} 18. Nxa5 {[%emt 0:00:58]} Qxa5 {[%emt 0:00:08]} 19.
Qd4 {[%emt 0:05:18]} Bc6 {[%emt 0:08:26]} 20. Bf3 {[%emt 0:07:12]} Rg8 {
[%emt 0:05:01]} 21. Rh3 {[%emt 0:03:12]} Rg7 {[%emt 0:02:48]} 22. Rh5 {[%emt 0:
01:34]} Qc7 {[%emt 0:02:58]} 23. Kb1 {[%emt 0:01:04]} Bb7 {[%emt 0:04:05]} 24.
f5 {[%emt 0:03:32]} Rc8 {[%emt 0:04:23]} 25. Qd3 {[%emt 0:02:01]} Qc4 {[%emt 0:
05:03]} 26. Ne2 {[%emt 0:02:57]} Qxd3 {[%emt 0:12:20]} 27. Rxd3 {[%emt 0:01:02]
} Rc4 {[%emt 0:01:02]} 28. Ng3 {[%emt 0:01:44]} Bf8 {[%emt 0:06:45]} 29. Rh3 {
[%emt 0:01:52]} Bc8 {[%emt 0:01:45]} 30. Rd2 {[%emt 0:03:14]} d5 {[%emt 0:04:
55]} 31. exd5 {[%emt 0:01:21]} exf5 {[%emt 0:00:12]} 32. d6 {[%emt 0:01:48]}
Bd7 {[%emt 0:03:35]} 33. b3 {[%emt 0:02:49]} Rc8 {[%emt 0:02:48]} 34. Nh5 {
[%emt 0:00:18]} Rg6 {[%emt 0:00:11]} 35. Rh4 {[%emt 0:01:45]} Re8 {[%emt 0:01:
19]} 36. Rd1 {[%emt 0:01:07]} Rh6 {[%emt 0:01:03]} 37. Rhd4 {[%emt 0:00:35]} f4
{[%emt 0:00:39]} 38. a4 {[%emt 0:02:36]} f5 {[%emt 0:01:08]} 39. axb5 {[%emt 0:
00:04]} axb5 {[%emt 0:00:04]} 40. Nxf4 {[%emt 0:03:13]} Rxh2 {[%emt 0:01:40]}
41. Nd5 {[%emt 0:24:33]} Rh6 {[%emt 0:22:55]} 42. Nb6 {[%emt 0:00:45]} Rd8 {
[%emt 0:00:55]} 43. c4 {[%emt 0:00:20]} f4 {[%emt 0:04:24]} 44. Nxd7+ {[%emt 0:
01:03]} Rxd7 {[%emt 0:00:11]} 45. c5 {[%emt 0:00:01]} Rf6 {[%emt 0:01:26]} 46.
Rb4 {[%emt 0:00:25]} 1-0

[Event "FIDE Womens Grand Swiss 2021"]
[Site "Riga"]
[Date "2021.11.04"]
[Round "8.20"]
[White "Lujan, Carolina"]
[Black "Danielian, Elina"]
[Result "1/2-1/2"]
[ECO "C00"]
[WhiteElo "2340"]
[BlackElo "2450"]
[Annotator "ChessBase"]
[PlyCount "69"]
[EventDate "2021.10.27"]
[EventType "swiss"]
[EventCountry "LAT"]
[Tiebreak "Cut1 Buchholz+Sonneborn-Berger (Swiss)"]
[SourceTitle "playchess.com"]
[Source "ChessBase"]
[SourceQuality "1"]
[TimeControl "40/6000+30:20/3000+30:900+30"]

1. e4 {[%emt 0:10:12]} e6 {[%emt 0:10:05]} 2. Qe2 {[%emt 0:00:16]} c5 {[%emt 0:
01:02]} 3. Nf3 {[%emt 0:00:22]} Nc6 {[%emt 0:01:59]} 4. g3 {[%emt 0:00:17]} g6
{[%emt 0:00:25]} 5. Bg2 {[%emt 0:01:01]} Bg7 {[%emt 0:00:06]} 6. O-O {[%emt 0:
01:19]} Nge7 {[%emt 0:01:27]} 7. c3 {[%emt 0:00:29]} d6 {[%emt 0:07:43]} 8. Rd1
{[%emt 0:08:44]} e5 {[%emt 0:03:11]} 9. a3 {[%emt 0:04:00]} O-O {[%emt 0:04:58]
} 10. b4 {[%emt 0:01:30]} Bg4 {[%emt 0:03:33]} 11. h3 {[%emt 0:14:42]} Be6 {
[%emt 0:00:11]} 12. Bb2 {[%emt 0:05:21]} Qb6 {[%emt 0:02:58]} 13. d3 {[%emt 0:
12:21]} h6 {[%emt 0:02:19]} 14. Nbd2 {[%emt 0:02:23]} cxb4 {[%emt 0:09:00]} 15.
axb4 {[%emt 0:06:18]} a5 {[%emt 0:00:10]} 16. Ba3 {[%emt 0:11:15]} axb4 {
[%emt 0:00:22]} 17. cxb4 {[%emt 0:04:45]} Ra4 {[%emt 0:01:33]} 18. b5 {[%emt 0:
02:26]} Qxb5 {[%emt 0:02:32]} 19. Bxd6 {[%emt 0:00:14]} Rd8 {[%emt 0:02:52]}
20. Rab1 {[%emt 0:04:01]} Qa6 {[%emt 0:00:11]} 21. Bc5 {[%emt 0:01:41]} Nc8 {
[%emt 0:11:16]} 22. Bf1 {[%emt 0:04:55]} b6 {[%emt 0:17:41]} 23. Be3 {[%emt 0:
00:06]} Nd4 {[%emt 0:03:06]} 24. Bxd4 {[%emt 0:00:35]} exd4 {[%emt 0:00:01]}
25. Rdc1 {[%emt 0:02:57]} Nd6 {[%emt 0:02:40]} 26. e5 {[%emt 0:01:50]} Nb5 {
[%emt 0:00:57]} 27. Ne4 {[%emt 0:00:50]} Ra2 {[%emt 0:14:57]} 28. Rb2 {[%emt 0:
00:40]} Ra8 {[%emt 0:00:26]} 29. Nf6+ {[%emt 0:06:38]} Kh8 {[%emt 0:01:14]} 30.
Rxa2 {[%emt 0:00:36]} Qxa2 {[%emt 0:00:09]} 31. Qe4 {[%emt 0:00:50]} Qa3 {
[%emt 0:05:34]} 32. Re1 {[%emt 0:01:28]} Rd8 {[%emt 0:00:39]} 33. Qh4 {[%emt 0:
00:25]} Qe7 {[%emt 0:00:28]} 34. Rb1 {[%emt 0:01:28]} Nc3 {[%emt 0:00:51]} 35.
Rxb6 {[%emt 0:00:12]} 1/2-1/2

[Event "FIDE Womens Grand Swiss 2021"]
[Site "Riga"]
[Date "2021.11.04"]
[Round "8.21"]
[White "Arakhamia-Grant, Ketevan"]
[Black "Arabidze, Meri"]
[Result "1/2-1/2"]
[ECO "B42"]
[WhiteElo "2376"]
[BlackElo "2441"]
[Annotator "NA"]
[PlyCount "92"]
[EventDate "2021.10.27"]
[EventType "swiss"]
[EventCountry "LAT"]
[Tiebreak "Cut1 Buchholz+Sonneborn-Berger (Swiss)"]
[SourceTitle "playchess.com"]
[Source "ChessBase"]
[SourceQuality "1"]
[TimeControl "40/6000+30:20/3000+30:900+30"]

1. e4 {[%emt 0:10:02]} c5 {[%emt 0:10:18]} 2. Nf3 {[%emt 0:00:08]} e6 {[%emt 0:
00:05]} 3. d4 {[%emt 0:00:08]} cxd4 {[%emt 0:00:05]} 4. Nxd4 {[%emt 0:00:03]}
a6 {[%emt 0:00:09]} 5. Bd3 {[%emt 0:00:39]} Nf6 {[%emt 0:00:12]} 6. O-O {
[%emt 0:03:19]} e5 {[%emt 0:00:12]} 7. Nb3 {[%emt 0:03:56]} d6 {[%emt 0:00:42]}
8. Bg5 {[%emt 0:06:14]} Be7 {[%emt 0:00:41]} 9. Bxf6 {[%emt 0:03:14]} Bxf6 {
[%emt 0:00:07]} 10. c4 {[%emt 0:00:06]} O-O {[%emt 0:03:30]} 11. Nc3 {[%emt 0:
00:07]} Nc6 {[%emt 0:02:49]} 12. Nd5 {[%emt 0:04:39]} Bg5 {[%emt 0:01:37]} 13.
Be2 {[%emt 0:07:57]} Be6 {[%emt 0:06:45]} 14. g3 {[%emt 0:04:40]} a5 {[%emt 0:
06:01]} 15. a4 {[%emt 0:03:01]} Bh6 {[%emt 0:05:46]} 16. Kh1 {[%emt 0:02:48]}
g6 {[%emt 0:05:22]} 17. Bg4 {[%emt 0:06:13]} f5 {[%emt 0:15:51]} 18. Bh3 {
[%emt 0:00:09]} Rf7 {[%emt 0:01:17]} 19. Qe2 {[%emt 0:14:18]} Qe8 {[%emt 0:07:
58]} 20. Rad1 {[%emt 0:02:06]} Rd8 {[%emt 0:04:33]} 21. f3 $11 {[%emt 0:13:13]}
Bg7 {[%emt 0:06:56]} 22. exf5 {[%emt 0:09:45]} Bxf5 {[%emt 0:08:36]} 23. Bxf5 {
[%emt 0:01:15]} gxf5 {[%emt 0:00:33]} 24. Rfe1 {[%emt 0:01:01]} Rf8 {[%emt 0:
02:16]} 25. Kg2 {[%emt 0:00:19]} Qf7 {[%emt 0:01:59]} 26. Qf2 {[%emt 0:04:25]}
Rfe8 {[%emt 0:02:40]} 27. Nc1 {[%emt 0:01:01]} Nd4 {[%emt 0:01:58]} 28. Ne2 {
[%emt 0:00:25]} Ne6 {[%emt 0:02:02]} 29. Nec3 {[%emt 0:00:27]} Nc5 {[%emt 0:00:
35]} 30. Re2 {[%emt 0:05:47]} Bf8 {[%emt 0:03:12]} 31. Kh1 {[%emt 0:03:51]} Re6
{[%emt 0:00:59]} 32. Qg2 {[%emt 0:00:39]} Rg6 {[%emt 0:02:02]} 33. Qf2 {
[%emt 0:00:25]} Rc8 {[%emt 0:01:12]} 34. Nb6 {[%emt 0:00:16]} Rc6 {[%emt 0:01:
23]} 35. Nbd5 {[%emt 0:00:08]} Nb3 {[%emt 0:01:00]} 36. Ne3 {[%emt 0:00:45]}
Nd4 {[%emt 0:01:27]} 37. Red2 {[%emt 0:00:11]} f4 {[%emt 0:01:44]} 38. gxf4 {
[%emt 0:00:54]} Qxf4 {[%emt 0:00:06]} 39. Ncd5 {[%emt 0:00:48]} Qxf3+ {[%emt 0:
04:40]} 40. Qxf3 {[%emt 0:00:05]} Nxf3 {[%emt 0:00:04]} 41. Rf2 {[%emt 0:22:35]
} e4 {[%emt 0:29:29]} 42. b3 {[%emt 0:03:07]} Rc8 {[%emt 0:05:13]} 43. Nf5 {
[%emt 0:01:50]} Re8 {[%emt 0:02:35]} 44. Ng3 {[%emt 0:00:55]} Bg7 {[%emt 0:03:
43]} 45. Nxe4 {[%emt 0:01:04]} Rxe4 {[%emt 0:00:28]} 46. Rxf3 {[%emt 0:00:04]}
Rge6 {[%emt 0:01:49]} 1/2-1/2

[Event "FIDE Womens Grand Swiss 2021"]
[Site "Riga"]
[Date "2021.11.04"]
[Round "8.25"]
[White "February, Jesse Nikki"]
[Black "Houska, Jovanka"]
[Result "0-1"]
[ECO "B15"]
[WhiteElo "1857"]
[BlackElo "2381"]
[Annotator "NA"]
[PlyCount "70"]
[EventDate "2021.10.27"]
[EventType "swiss"]
[EventCountry "LAT"]
[Tiebreak "Cut1 Buchholz+Sonneborn-Berger (Swiss)"]
[SourceTitle "playchess.com"]
[Source "ChessBase"]
[SourceQuality "1"]
[TimeControl "40/6000+30:20/3000+30:900+30"]

1. e4 {[%emt 0:10:09]} c6 {[%emt 0:10:09]} 2. d4 {[%emt 0:00:19]} d5 {[%emt 0:
00:05]} 3. Nc3 {[%emt 0:00:37]} dxe4 {[%emt 0:00:16]} 4. Nxe4 {[%emt 0:00:32]}
Nf6 {[%emt 0:00:10]} 5. Nxf6+ {[%emt 0:01:01]} exf6 {[%emt 0:00:04]} 6. Nf3 {
[%emt 0:02:01]} Bd6 {[%emt 0:00:12]} 7. Be2 {[%emt 0:01:13]} O-O {[%emt 0:01:
37]} 8. O-O {[%emt 0:01:36]} Nd7 {[%emt 0:01:02]} 9. c4 {[%emt 0:01:25]} Re8 {
[%emt 0:00:13]} 10. Qc2 {[%emt 0:04:05]} Nf8 {[%emt 0:02:50]} 11. Be3 {[%emt 0:
04:10]} Ng6 {[%emt 0:01:30]} 12. Rfe1 {[%emt 0:03:17]} Bg4 {[%emt 0:05:41]} 13.
h3 {[%emt 0:00:55]} Be6 {[%emt 0:00:24]} 14. b3 {[%emt 0:04:46]} Qd7 {[%emt 0:
04:37]} 15. Bf1 {[%emt 0:10:52]} Re7 {[%emt 0:08:16]} 16. Rad1 {[%emt 0:03:43]}
Bf5 {[%emt 0:04:27]} 17. Qc1 {[%emt 0:01:10]} Rae8 {[%emt 0:00:31]} 18. d5 {
[%emt 0:04:44]} c5 {[%emt 0:02:31]} 19. b4 {[%emt 0:03:41]} b6 {[%emt 0:02:10]}
20. bxc5 {[%emt 0:03:03]} bxc5 {[%emt 0:00:04]} 21. Qa3 {[%emt 0:01:21]} Qc8 {
[%emt 0:00:16]} 22. Bd2 {[%emt 0:03:31]} Be4 {[%emt 0:01:25]} 23. g3 {[%emt 0:
03:42]} h5 {[%emt 0:04:43]} 24. Bg2 {[%emt 0:01:43]} h4 {[%emt 0:17:44]} 25.
Nxh4 {[%emt 0:03:59]} Nxh4 {[%emt 0:00:10]} 26. gxh4 {[%emt 0:01:48]} Qf5 {
[%emt 0:00:34]} 27. Bxe4 {[%emt 0:06:21]} Rxe4 {[%emt 0:00:28]} 28. Rxe4 {
[%emt 0:02:51]} Rxe4 {[%emt 0:02:41]} 29. f4 {[%emt 0:17:15]} Rd4 {[%emt 0:06:
22]} 30. Qa4 {[%emt 0:01:25]} Qxh3 {[%emt 0:01:27]} 31. Qe8+ {[%emt 0:02:17]}
Kh7 {[%emt 0:00:07]} 32. Qe2 {[%emt 0:01:25]} Qg3+ {[%emt 0:02:43]} 33. Kf1 {
[%emt 0:02:00]} Bxf4 {[%emt 0:02:19]} 34. Re1 {[%emt 0:01:03]} Bxd2 {[%emt 0:
02:34]} 35. Qh5+ {[%emt 0:00:42]} Bh6 {[%emt 0:00:06]} 0-1

[Event "FIDE Womens Grand Swiss 2021"]
[Site "Riga"]
[Date "2021.11.05"]
[Round "9.1"]
[White "Kosteniuk, Alexandra"]
[Black "Lei, Tingjie"]
[Result "0-1"]
[ECO "B11"]
[WhiteElo "2518"]
[BlackElo "2505"]
[Annotator "ChessBase"]
[PlyCount "100"]
[EventDate "2021.10.27"]
[EventType "swiss"]
[EventCountry "LAT"]
[Tiebreak "Cut1 Buchholz+Sonneborn-Berger (Swiss)"]
[SourceTitle "playchess.com"]
[Source "ChessBase"]
[SourceQuality "1"]
[TimeControl "40/6000+30:20/3000+30:900+30"]

1. e4 {[%emt 0:10:03]} c6 {[%emt 0:10:26]} 2. Nc3 {[%emt 0:00:47]} d5 {[%emt 0:
00:08]} 3. Nf3 {[%emt 0:00:04]} dxe4 {[%emt 0:00:10]} 4. Nxe4 {[%emt 0:00:06]}
Nf6 {[%emt 0:00:06]} 5. Qe2 {[%emt 0:00:08]} Bg4 {[%emt 0:00:06]} 6. h3 {
[%emt 0:04:19]} Bh5 {[%emt 0:00:07]} 7. Nxf6+ {[%emt 0:00:46]} gxf6 {[%emt 0:
00:05]} 8. b3 {[%emt 0:04:55]} Na6 {[%emt 0:03:06]} 9. Bb2 {[%emt 0:06:11]} Nb4
{[%emt 0:03:41]} 10. Qc4 {[%emt 0:06:28]} e6 {[%emt 0:14:06]} 11. a3 {[%emt 0:
10:47]} Nd5 {[%emt 0:03:37]} 12. Qh4 {[%emt 0:02:46]} Bxf3 {[%emt 0:01:38]} 13.
gxf3 {[%emt 0:00:03]} Be7 {[%emt 0:01:18]} 14. Qg3 {[%emt 0:08:31]} Qb6 {
[%emt 0:20:29]} 15. f4 {[%emt 0:07:14]} Bd6 {[%emt 0:10:30]} 16. Qf3 {[%emt 0:
10:28]} O-O-O {[%emt 0:01:55]} 17. f5 {[%emt 0:03:27]} Be5 {[%emt 0:07:01]} 18.
O-O-O {[%emt 0:03:56]} Bxb2+ {[%emt 0:00:06]} 19. Kxb2 {[%emt 0:00:03]} Qd4+ {
[%emt 0:00:06]} 20. c3 {[%emt 0:00:53]} Qf4 {[%emt 0:00:04]} 21. Qxf4 {[%emt 0:
02:32]} Nxf4 {[%emt 0:00:03]} 22. Rg1 {[%emt 0:00:35]} Rhg8 {[%emt 0:01:29]}
23. Rg3 {[%emt 0:02:55]} h5 {[%emt 0:05:19]} 24. d4 {[%emt 0:05:31]} h4 {
[%emt 0:06:48]} 25. Re3 {[%emt 0:06:04]} e5 {[%emt 0:03:39]} 26. Kc2 {[%emt 0:
01:47]} Rg1 {[%emt 0:01:34]} 27. Re4 {[%emt 0:06:06]} Rh1 {[%emt 0:03:25]} 28.
a4 {[%emt 0:02:33]} Kc7 {[%emt 0:01:14]} 29. b4 {[%emt 0:01:21]} Nxh3 {[%emt 0:
03:40]} 30. Bxh3 {[%emt 0:03:13]} Rxh3 {[%emt 0:00:04]} 31. dxe5 {[%emt 0:00:
10]} fxe5 {[%emt 0:04:59]} 32. Rxe5 {[%emt 0:00:47]} Rxc3+ {[%emt 0:00:18]} 33.
Kxc3 {[%emt 0:00:02]} Rxd1 {[%emt 0:00:04]} 34. Re7+ {[%emt 0:00:11]} Rd7 {
[%emt 0:00:42]} 35. Re4 {[%emt 0:00:47]} h3 {[%emt 0:00:08]} 36. Rh4 {[%emt 0:
01:24]} Rd5 {[%emt 0:00:05]} 37. Rxh3 {[%emt 0:00:35]} Rxf5 {[%emt 0:00:04]}
38. f3 {[%emt 0:00:16]} Kb6 {[%emt 0:01:53]} 39. Kb3 {[%emt 0:00:38]} Rf4 {
[%emt 0:00:27]} 40. a5+ {[%emt 0:00:07]} Kb5 {[%emt 0:00:16]} 41. Kc3 {[%emt 0:
50:29]} Rc4+ {[%emt 0:25:58]} 42. Kd3 {[%emt 0:00:00]} Kxb4 {[%emt 0:00:20]}
43. a6 {[%emt 0:00:00]} b5 {[%emt 0:02:45]} 44. Ke3 {[%emt 0:00:00]} Kc3 {
[%emt 0:08:06]} 45. Rh7 {[%emt 0:00:00]} b4 {[%emt 0:00:05]} 46. Rxf7 {[%emt 0:
00:00]} b3 {[%emt 0:00:02]} 47. Rxa7 {[%emt 0:00:00]} b2 {[%emt 0:00:05]} 48.
Rb7 {[%emt 0:00:00]} Ra4 {[%emt 0:00:02]} 49. a7 {[%emt 0:00:00]} c5 {[%emt 0:
00:20]} 50. f4 {[%emt 0:00:00]} Rxa7 {[%emt 0:00:13]} 0-1